Cogmind - Beta 16.1 @@@ ROGUE MODE // 2026.03.18 @ 18:02:30 Player: Ez Result: Destroyed by G-47 Trooper with Particle Gun Performance ------------- Evolutions (2) 1000 Regions Visited (5) 1000 Robots Destroyed (13) 65 Value Destroyed (354) 354 Prototype IDs (37) 740 Alien Tech Used (0) 0 Bonus (300) 300 TOTAL SCORE: 3459 Bonus ------- Aligned with FarCom 300 Cogmind --------- Core Integrity 0/550 Matter 7/300 Energy 100/100 System Corruption 0% Temperature Cool (9) Movement Core (350) Ox6 Location -8/Materials Parts ------- > --- POWER (1) -------- (None) > --- PROPULSION (4) --- (None) > --- UTILITY (4) ------ Large Storage Unit Signal Interpreter > --- WEAPON (2) ------- (None) > --- INVENTORY (15) --- Ion Engine Light Treads Light Treads Light Treads Improved Heat Sink Medium Storage Unit High-capacity Storage Unit Light Armor Plating Improved Light Armor Plating EM Pulse Gun Assault Rifle Datajack Peak State ------------ > --- POWER ------------ Light Nuclear Core > --- PROPULSION ------- Improved Treads Improved Treads Improved Treads Improved Treads > --- UTILITY ---------- Large Storage Unit Signal Interpreter Improved Light Armor Plating Improved Light Armor Plating > --- WEAPON ----------- Assault Rifle Light Assault Rifle > --- INVENTORY -------- Ion Engine Light Nuclear Core Light Treads Light Treads Light Treads Light Treads Improved Heat Sink Medium Storage Unit High-capacity Storage Unit Cloak of Protection Light Armor Plating Improved Light Armor Plating EM Pulse Gun EM Pulse Cannon Datajack [Rating: 24] Favorites ----------- Power Light Nuclear Core Engine Ion Engine Power Core Light Nuclear Core Propulsion Improved Treads Treads Improved Treads Utility Large Storage Unit Device Cloak of Protection Storage Large Storage Unit Processor Signal Interpreter Protection Light Armor Plating Weapon Light Assault Rifle Energy Cannon EM Pulse Cannon Ballistic Gun Light Assault Rifle Special Melee Weapon Datajack Build | -11 -10 -10 -10 -9 -8 ------- Run | Yrd Mat Min Exi Min Mat Slots Evolved 4 | . . . . . 4 Power . | . . . . . . Propulsion 2 | . . . . . 2 Utility 2 | . . . . . 2 Weapon . | . . . . . . Parts Attached 24 | 6 8 1 1 . 8 Power 3 | 1 1 . . . 1 Engine 1 | 1 . . . . . Core 2 | . 1 . . . 1 Reactor . | . . . . . . Propulsion 8 | 2 3 . . . 3 Treads 8 | 2 3 . . . 3 Leg . | . . . . . . Wheel . | . . . . . . Hover . | . . . . . . Flight . | . . . . . . Utility 8 | 1 3 1 . . 3 Device 1 | . . . . . 1 Storage 2 | 1 1 . . . . Processor 1 | . . 1 . . . Hackware . | . . . . . . Protection 4 | . 2 . . . 2 Artifact . | . . . . . . Weapon 5 | 2 1 . 1 . 1 Energy Gun . | . . . . . . Energy Cannon 1 | . . . . . 1 Ballistic Gun 3 | 2 1 . . . . Ballistic Cannon . | . . . . . . Launcher . | . . . . . . Special Weapon . | . . . . . . Impact Weapon . | . . . . . . Slashing Weapon . | . . . . . . Piercing Weapon . | . . . . . . Special Melee Weapon 1 | . . . 1 . . Unidentified Prototypes . | . . . . . . Parts Lost 11 | . 3 . . . 8 Power 3 | . 1 . . . 2 Propulsion 3 | . . . . . 3 Utility 4 | . 1 . . . 3 Weapon 1 | . 1 . . . . Highest Loss Streak 6 | . 3 . . . 6 To Critical Strikes . | . . . . . . Average Backups 12 | . 9 13 14 14 13 Power 1 | . 1 1 1 1 1 Propulsion 5 | . 4 6 6 6 3 Utility 3 | . 3 4 4 5 5 Weapon 1 | . . 1 2 1 1 Tool/Special . | . . . . . . Unused Backups 8 | . 1 . . . 7 Power 1 | . . . . . 1 Propulsion 1 | . . . . . 1 Utility 5 | . 1 . . . 4 Weapon 1 | . . . . . 1 Tool/Special . | . . . . . . Average Slot Usage (%) 91 | . 97 100 85 100 73 Engine 3 | . 9 . . . . Core 9 | . 4 14 14 14 7 Treads 27 | . 25 28 28 28 28 Storage 13 | . 14 14 14 14 9 Processor 7 | . . 10 14 14 9 Protection 6 | . 13 3 . . 3 Ballistic Gun 17 | . 27 28 . 28 13 Special Melee Weapon 4 | . . . 13 . . Peak Build Rating 24 | 6 12 12 13 13 24 Average Rating 11 | 4 9 12 11 13 16 On Entrance 9 | . 6 12 12 13 13 Avg Prop Armor Cover (%) . | . . . . . . Naked Turns . | . . . . . . Heaviest Build 34 | 12 31 31 28 28 34 Greatest Support 92 | 40 46 46 46 46 92 Greatest Overweight (x) 8 | . 8 . . . . Average Overweight (x) . | . . . . . . Largest Inventory Capacity 15 | 8 15 15 15 15 15 Average Capacity 14 | 6 14 15 15 15 15 Most Carried 15 | 3 14 13 15 14 15 Average Carried 12 | . 9 13 14 14 13 Final Capacity 15 | 8 15 15 15 15 15 Final Carried 14 | . 13 13 14 14 12 Class Distribution -------------------- 100% | Mutant Dominant Class ---------------- Mutant | -10/Materials Mutant | -10/Mines Mutant | -10/Exiles Mutant | -9/Mines Mutant | -8/Materials Resources | -11 -10 -10 -10 -9 -8 ----------- Run | Yrd Mat Min Exi Min Mat Matter Collected 495 | 132 251 . . 61 51 Remotely . | . . . . . . Salvage Created 420 | 50 319 . . . 51 Parts 24 | 2 20 . . . 2 Haulers Intercepted . | . . . . . . Recyclers Shooed . | . . . . . . Parts Field Recycled . | . . . . . . Retrieved Matter . | . . . . . . Parts Self-Destructed . | . . . . . . Prevented . | . . . . . . Parts Restored . | . . . . . . Kills | -11 -10 -10 -10 -9 -8 ------- Run | Yrd Mat Min Exi Min Mat Combat Hostiles Destroyed 11 | . 10 . . . 1 Guns 11 | . 10 . . . 1 Classes Destroyed 4 | 1 3 . . . . Tunneler 1 | . 1 . . . . Recycler 1 | 1 . . . . . Swarmer 3 | . 3 . . . . Grunt 8 | . 7 . . . 1 Best Kill Streak 3 | 1 3 . . . 1 Combat Bots Only 3 | . 3 . . . 1 Max Kills in Single Turn 1 | 1 1 . . . 1 Gunslinging . | . . . . . . Exploded . | . . . . . . Melee . | . . . . . . Uniques/NPCs Destroyed . | . . . . . . Combat | -11 -10 -10 -10 -9 -8 -------- Run | Yrd Mat Min Exi Min Mat Hostile Shots Fired 193 | . 92 . . . 101 Missed 47 | . 29 . . . 18 Hits 146 | . 63 . . . 83 Melee 29 | . . . . . 29 Projectile 117 | . 63 . . . 54 Critical Strikes 11 | . 1 . . . 10 Damage Taken 2554 | . 740 . . . 1814 Core 639 | . 78 . . . 561 Absorbed by Shields . | . . . . . . Core Remaining (%) 84 | 100 . . . 68 . Volleys Fired 64 | 2 51 . . . 11 Largest 2 | 2 2 . . . 2 Hottest 63 | 40 40 . . . 63 Shots Fired 125 | 4 102 1 . . 18 Gun 123 | 4 102 1 . . 16 Cannon 2 | . . . . . 2 Launcher . | . . . . . . Special . | . . . . . . Kinetic 123 | 4 102 1 . . 16 Thermal . | . . . . . . Explosive . | . . . . . . Electromagnetic 2 | . . . . . 2 Robot Hit Streak 6 | 4 6 . . . 6 Robot Miss Streak 3 | . 3 3 . . 1 Penetration Max . | . . . . . . Secondary Targets 1 | . 1 . . . . Max Gunslinging Chain 1 | . 1 . . . . Shots Hit Robots 85 | 4 61 . 7 . 13 Core Hits 33 | 2 25 . . . 6 Critical Kills . | . . . . . . Critical Parts Destroyed . | . . . . . . Critical Strikes . | . . . . . . Melee Attacks 7 | . . . 7 . . Impact . | . . . . . . Slashing . | . . . . . . Piercing . | . . . . . . Sneak Attacks 7 | . . . 7 . . Combat Hostiles . | . . . . . . Follow-up Attacks . | . . . . . . Damage Inflicted 688 | 36 500 12 . . 140 Guns 652 | 36 498 . . . 118 Cannons 22 | . . . . . 22 Explosions . | . . . . . . Melee . | . . . . . . Ramming 14 | . 2 12 . . . Kinetic 652 | 36 498 . . . 118 Thermal . | . . . . . . Explosive . | . . . . . . Electromagnetic 22 | . . . . . 22 Impact . | . . . . . . Slashing . | . . . . . . Piercing . | . . . . . . Highest Corruption 9 | . 9 9 9 9 . Average Corruption 7 | . 6 9 9 9 . Corruption Purged . | . . . . . . Corruption Blocked . | . . . . . . Effects 101 | . 35 12 43 11 . Message Errors 27 | . 9 1 13 4 . Matter Fused 30 | . 11 4 11 4 . Heat Flow Errors 12 | . 3 . 8 1 . Energy Discharges 7 | . 2 2 3 . . Parts Rejected 2 | . 2 . . . . Parts Fused 1 | . 1 . . . . Data Loss (minor) 8 | . 2 2 3 1 . Data Loss (major) 6 | . 1 1 3 1 . Misfires 4 | . 3 1 . . . Alerts 4 | . 1 1 2 . . Overload Shots . | . . . . . . Overflow Damage . | . . . . . . Projectiles . | . . . . . . Explosions . | . . . . . . Melee . | . . . . . . Knockbacks 1 | . 1 . . . . Impact 1 | . 1 . . . . Kinetic . | . . . . . . Secondary . | . . . . . . Self-Inflicted Damage . | . . . . . . Shots . | . . . . . . Rammed 2 | . . 2 . . . Targets Rammed 3 | . 1 2 . . . Kicked . | . . . . . . Crushed 1 | . 1 . . . . Highest Temperature 274 | . 274 . 268 238 23 Average Temperature 65 | . 40 . 107 120 7 Received Heat Transfer 876 | . 354 . . . 522 Effects 2 | . 2 . . . . Interference 2 | . 2 . . . . Siege Activations . | . . . . . . Martial Activations . | . . . . . . Shielding Activations . | . . . . . . Robots Disrupted . | . . . . . . Combat Hostiles . | . . . . . . Robots Corrupted . | . . . . . . Combat Hostiles . | . . . . . . Parts Fried . | . . . . . . Impact Corruptions . | . . . . . . Robots Melted . | . . . . . . Combat Hostiles . | . . . . . . Parts Melted . | . . . . . . Heat Transferred . | . . . . . . Parts Sabotaged . | . . . . . . Parts Stolen . | . . . . . . Parts Stripped . | . . . . . . Power Chain Reactions . | . . . . . . Alert | -11 -10 -10 -10 -9 -8 ------- Run | Yrd Mat Min Exi Min Mat Maximum Alert Level . | . . . . . . Low Security (%) 100 | 100 100 100 . 100 100 Level 1 . | . . . . . . Level 2 . | . . . . . . Level 3 . | . . . . . . Level 4 . | . . . . . . Level 5 . | . . . . . . High Security . | . . . . . . Max Security . | . . . . . . Peak Influence 75 | 5 75 . . . 20 Initial . | . . . . . . Average 8 | . 13 . . . . Influence Increases 357 | 5 332 . . . 20 Destroy 0b10 Robot/C 220 | . 200 . . . 20 Destroy 0b10 Robot/NC 10 | 5 5 . . . . Destroy Leader 60 | . 60 . . . . Successful Hack 22 | . 22 . . . . Partial Spotted 15 | . 15 . . . . Lose Combat Pursuer 30 | . 30 . . . . Influence Decreases 357 | 5 332 . . . 20 Time Decay 355 | 5 330 . . . 20 Lost Part 2 | . 2 . . . . Squads Dispatched 3 | . 3 . . . . Investigation 1 | . 1 . . . . Extermination . | . . . . . . Reinforcement 2 | . 2 . . . . Assault . | . . . . . . Garrison . | . . . . . . Intercept . | . . . . . . Searches Triggered . | . . . . . . Construction Impeded . | . . . . . . Haulers Reinforced . | . . . . . . Active Scanning Responses . | . . . . . . Cargo Convoy Interrupts . | . . . . . . Stealth | -11 -10 -10 -10 -9 -8 --------- Run | Yrd Mat Min Exi Min Mat Distress Signals 1 | . 1 . . . . Communications Jammed . | . . . . . . Distress Signals . | . . . . . . Times Spotted 32 | . 25 . . . 7 Peak Tracking Total 4 | . 3 . . . 4 Tactical Retreats 2 | . 2 . . . . Traps | -11 -10 -10 -10 -9 -8 ------- Run | Yrd Mat Min Exi Min Mat Traps Triggered 8 | . 8 . . . . Indirectly . | . . . . . . Trap Hack Attempts . | . . . . . . Triggered . | . . . . . . Disarmed . | . . . . . . Reprogrammed . | . . . . . . Reused . | . . . . . . Traps Extracted . | . . . . . . Installed . | . . . . . . Triggered . | . . . . . . Machines | -11 -10 -10 -10 -9 -8 ---------- Run | Yrd Mat Min Exi Min Mat Machines Disabled . | . . . . . . Max in Single Turn . | . . . . . . Machines Repaired . | . . . . . . Machines Dismantled . | . . . . . . Machines Sabotaged . | . . . . . . Overloaded Fab Kills . | . . . . . . Hacking | -11 -10 -10 -10 -9 -8 --------- Run | Yrd Mat Min Exi Min Mat Machines Accessed 7 | . 4 . 3 . . Terminals 3 | . 3 . . . . Fabricators . | . . . . . . Repair Stations . | . . . . . . Recycling Units 1 | . 1 . . . . Scanalyzers . | . . . . . . Garrison Access . | . . . . . . Total Hacks 24 | . 6 . 18 . . Successful 21 | . 3 . 18 . . Failed 3 | . 3 . . . . Catastrophic 1 | . 1 . . . . Database Lockouts . | . . . . . . Manual 6 | . 5 . 1 . . Terminals 5 | . 5 . . . . Fabricators . | . . . . . . Repair Stations . | . . . . . . Recycling Units 1 | . 1 . . . . Scanalyzers . | . . . . . . Garrison Access . | . . . . . . Terminal Hacks 19 | . 1 . 18 . . Record 17 | . . . 17 . . Terminal Index 1 | . 1 . . . . Proto ID Catalog 1 | . . . 1 . . Fabricator Hacks . | . . . . . . Repair Station Hacks . | . . . . . . Recycling Unit Hacks 1 | . 1 . . . . Report Inventory 1 | . 1 . . . . Scanalyzer . | . . . . . . Garrison Access Hacks . | . . . . . . Unauthorized Hacks 1 | . 1 . . . . Terminals 1 | . 1 . . . . Operators 1 | . 1 . . . . Fabricators . | . . . . . . Repair Stations . | . . . . . . Recycling Units . | . . . . . . Scanalyzers . | . . . . . . Garrison Access . | . . . . . . Data Cores Recovered . | . . . . . . Used . | . . . . . . Hacking Detections 2 | . 2 . . . . Full Trace Events . | . . . . . . Feedback Events . | . . . . . . Feedback Blocked . | . . . . . . Robot Schematics Acquired . | . . . . . . Robots Built . | . . . . . . Authchips . | . . . . . . Time . | . . . . . . Total Robot Build Rating . | . . . . . . Part Schematics Acquired . | . . . . . . Parts Built . | . . . . . . Authchips . | . . . . . . Time . | . . . . . . Total Part Build Rating . | . . . . . . Part Studies Acquired . | . . . . . . Parts Repaired . | . . . . . . Time . | . . . . . . Parts Recycled . | . . . . . . Recycled Matter . | . . . . . . Retrieved Matter . | . . . . . . Retrieved Components . | . . . . . . Parts Scanalyzed . | . . . . . . Part Schematics Acquired . | . . . . . . Parts Damaged . | . . . . . . Bothacking | -11 -10 -10 -10 -9 -8 ------------ Run | Yrd Mat Min Exi Min Mat Used RIF Installer . | . . . . . . Robots Hacked 5 | . . . 5 . . Non-combat 3 | . . . 3 . . Combat 2 | . . . 2 . . Robot Hacks Applied 6 | . . . 6 . . parse_system 6 | . . . 6 . . Relay Couplers Released . | . . . . . . Fabnet Peak Effective % . | . . . . . . Robots Rewired . | . . . . . . Allies Hacked . | . . . . . . Hacks Repelled . | . . . . . . Allies | -11 -10 -10 -10 -9 -8 -------- Run | Yrd Mat Min Exi Min Mat Total Allies . | . . . . . . Largest Group . | . . . . . . Highest-Rated Group . | . . . . . . Highest-Rated Ally . | . . . . . . Total Orders . | . . . . . . Ally Attacks . | . . . . . . Total Damage . | . . . . . . Kills . | . . . . . . Allies Corrupted . | . . . . . . Allies Melted . | . . . . . . Intel | -11 -10 -10 -10 -9 -8 ------- Run | Yrd Mat Min Exi Min Mat Active Infowar (turns) 9 | . . . . . 9 Cloaking 9 | . . . . . 9 Robot Analysis Total . | . . . . . . Derelict Logs Recovered . | . . . . . . Drone Launches . | . . . . . . Drone Recoveries . | . . . . . . Exploration | -11 -10 -10 -10 -9 -8 ------------- Run | Yrd Mat Min Exi Min Mat Turns Passed 4114 | 81 1644 440 1351 290 308 Spaces Moved 2188 | 42 803 266 835 182 60 Core 5 | 2 3 . . . . Treads 2183 | 40 800 266 835 182 60 Legs . | . . . . . . Wheels . | . . . . . . Hover . | . . . . . . Flight . | . . . . . . Fastest Speed 50 | 50 160 160 160 160 160 Average Speed 161 | 154 163 160 160 160 160 Slowest Speed 450 | 160 450 160 160 160 160 Overloaded Moves . | . . . . . . Propulsion Burnouts . | . . . . . . Robots Hopped . | . . . . . . Potential Cave-ins . | . . . . . . Cave-ins Triggered . | . . . . . . Exploration Rate (%) 46 | 4 92 36 92 47 7 Regions Visited 5 Branch Regions 3 Pre-discovered Areas . | . . . . . . Known Exits Taken 3 | . . 1 1 1 . Unknown Exits Taken 2 | 1 1 . . . . Scrap Searched 1 | . . . . 1 . Spaces Dug . | . . . . . . Terrain Destroyed . | . . . . . . Melee . | . . . . . . Projectile . | . . . . . . AOE . | . . . . . . Terrain Rammed . | . . . . . . Walls Destroyed . | . . . . . . Machines Disabled . | . . . . . . Actions | -11 -10 -10 -10 -9 -8 --------- Run | Yrd Mat Min Exi Min Mat Total 2672 | 55 1052 279 850 181 255 Wait 343 | . 164 11 . . 168 Move 2183 | 41 802 265 834 181 60 Hop . | . . . . . . Pick Up 38 | 6 23 . 2 . 7 Fast Attach . | . . . . . . Attach 27 | 6 9 . 3 . 9 Detach 3 | . . . 3 . . Swap 2 | . 1 1 . . . Drop 2 | . 1 . 1 . . Fire 64 | 2 51 . . . 11 Melee 7 | . . . 7 . . Ram . | . . . . . . Kick . | . . . . . . Crush 3 | . 1 2 . . . Escape Stasis . | . . . . . . Rewire . | . . . . . . Trap . | . . . . . . Miscellaneous . | . . . . . . Route ------- -11/Scrapyard -10/Materials (discovered 4 exits: *Mat x3 / [*Min]) -10/Mines (discovered 2 exits: *Mat / *Exi) -10/Exiles -9/Mines -8/Materials History --------- Turn | Location | Event 43 | -11/Scrapyard | Discovered new exit (range 16) 82 | -11/Scrapyard | Entered Materials 243 | -10/Materials | Discovered new exit (range 7) 307 | -10/Materials | Build established: Mutant 395 | -10/Materials | Discovered new exit (range 12) 559 | -10/Materials | Discovered new exit (range 15) 844 | -10/Materials | Discovered new exit (range 7) 1231 | -10/Materials | Lost 3 parts (1p1u1w) 1726 | -10/Materials | Entered Mines 1758 | -10/Mines | Met a Derelict bent on vengeance 1818 | -10/Mines | Discovered new exit (range 11) 1840 | -10/Mines | Identified exit to Materials 2157 | -10/Mines | Deemed a non-threat by the Exiles lab entrance 2157 | -10/Mines | Discovered new exit (range 5) 2163 | -10/Mines | Identified exit to Exiles 2166 | -10/Mines | Entered Exiles 2208 | -10/Exiles | Met 8R-AWN 2239 | -10/Exiles | Met EX-HEX 2288 | -10/Exiles | Met EX-BIN 2309 | -10/Exiles | Aligned with FarCom system 2311 | -10/Exiles | Given EX-Vault access code 2366 | -10/Exiles | Opened EX-Vault 2371 | -10/Exiles | Found Prototype Device 2385 | -10/Exiles | Identified Cloak of Protection 2420 | -10/Exiles | Warned to stay clear of 0b10 Research branches 2463 | -10/Exiles | Met EX-DEC 2525 | -10/Exiles | Visited The Gauntlet 2767 | -10/Exiles | Discovered new exit (range 12) 2785 | -10/Exiles | Identified exit to Mines 3517 | -10/Exiles | Left Exiles lab with Cloak of Protection 3517 | -10/Exiles | Entered Mines 3767 | -9/Mines | Discovered new exit (range 8) 3783 | -9/Mines | Identified exit to Materials 3807 | -9/Mines | Entered Materials 3807 | -8/Materials | Evolved 4 slots: Propulsion x2, Utility x2 4101 | -8/Materials | Core integrity fell below 50% 4111 | -8/Materials | Core integrity fell below 20% 4115 | -8/Materials | Destroyed by G-47 Trooper with Particle Gun Last Messages --------------- Lgt. Treads severed. R-06 Scavenger collects Lgt. Assault Rifle. Imp. Treads severed. M-13 Machinist repairs L-31 Rogue. R-06 Scavenger collects Lgt. Treads. M-13 Machinist repairs L-31 Rogue Imp. Ion Engine. R-06 Scavenger collects Imp. Treads. Lgt. Nuclear Core destroyed. Critical hit (Burn: +37). Imp. Light Armor Plating destroyed. EM Pulse Cannon severed. Imp. Treads destroyed. Critical hit (Burn: +37). Lgt. Nuclear Core destroyed. The Cloak of Protection is an example of a part that consumes a large amount of energy each turn, consider turning it off when not vital. Processing Tank disabled. Cloak of Protection destroyed. Map ----- +----------------------------------------------------+ | | | | | | | | | | | | | ?????????????????????????????????????????????????? | | ?????????????????????????????????????????????????? | | ?????????????????????????????????????????????????? | | ?????????????????????????????????????????????????? | | ?????????????????????????????????????????????????? | | ?????????????????????????????????????????????????? | | ?????????????????????????????????????????????????? | | ?????????????????????????????????????????????????? | | ?????????????????????????????????????????????????? | | ????????????????????########?????????????????????? | | ????????????????????# ############??????????? | | ????????????????????#""" # # #??????????? | | ????????????????????#""" # # """ #??????????? | | ????????????????????#""" # # """ +??????????? | | ????????????????????# + + """ #???w ?????? | | ????????????????????# # # #?? ?????? | | ???????????????????###/##### # [#? #????? | | ???????????????????# gg ## ######### #????? | | ???????????????????# # """ !! #????? | | ???????????????????# " " @# "Y" !! # ???? | | ???????????????????# """ l !! + ???? | | ???????????????????# """ #r #????? | | ???????????????????# """ #m #????? | | ???????????????????# """ # #?????? | | ???????????????????# # #?????? | | ???????????????????######## """ #?????? | | ???????????????????######## """ +?????? | | ??????????????? w ] """ #?????? | | ??????????????? #?????? | | ???????????????[[ """ """ !! #?????? | | ???????????????????""" """ ###############?????? | | ????????????gg?g????"" """ #???????????????????? | | ???????????????????? #???????????????????? | | ???????????????????? ? #???????????????????? | | ?????????????????????" """ #???????????????????? | | ?????????????????????" """ #???????????????????? | | ????????????????????"" """ ????????????????????? | | ?????????????????????????? ????????????????????? | | ?????????????????????????? ????????????????????? | | ?????????????????????????? ????????????????????? | | ??????????????????????????? ?????????????????????? | | ?????????????????????????????????????????????????? | | ?????????????????????????????????????????????????? | | ?????????????????????????????????????????????????? | +----------------------------------------------------+ Best States ------------- Heat Dissipation 31 Energy Generation 14 Energy Capacity 250 Matter Stores 199 Matter Capacity 300 Sight Range 16 Terrain Scan Density 10 Cloak Strength 5 Armor Coverage 300 Evasion (%) 40 Recoil Reduction 4 Item Schematics ----------------- None Robot Schematics ------------------ None Fabricated ------------ Nothing Repaired ---------- Nothing Studied --------- None Alien Tech Used ----------------- None Achievements -------------- None Challenges ------------ None Game ------ Seed HypercooledExpertSlamshotty Manual? 0 Play Time 00:38:25 Cumulative 23.9 hours Start 2026.03.17 @ 16:36:38 End 2026.03.18 @ 18:02:30 Sessions 3 Manual Loads 0 Difficulty Rogue Special Mode None Game No. 72 Rogue 70 Adventurer 2 Explorer 0 Win Type - Total 0 Types 0/0/0/0/0/0/0/0/0/0 Lore% 7 Gallery% 17 Achievement% 14 Wizard Run 0 Options --------- Layout 1 ASCII 0 Keyboard 0 Movement Mouse Keybinds 0 Fullscreen 2 Font 32/SmallcapsGlow Map View 50x35 Zoom Use 1% Tactical HUD 0 Map Filters NONE Filters NONE Steam 1 RUN: d6c2c643-93e2-4887-ae01-d118dbfe53d2